bitfinex/quotes_ETHUSD_20230405
["timestamp","ask_amount","ask_price","bid_price","bid_amount"]
[1680674541621,4.97111402,1913.2,1913.1,4.46576255]
[1680674541833,5.52611402,1913.2,1913.1,4.46376255]
[1680674542128,5.51873083,1913.2,1913.1,4.46976255]
[1680674542723,5.51873083,1913.2,1913.1,9.96976255]
[1680674542919,5.51873083,1913.2,1913.1,9.97176255]
[1680674543235,5.51873083,1913.2,1913.1,4.47176255]
[1680674543434,5.51873083,1913.2,1913.1,4.46976255]
[1680674543836,5.51873083,1913.2,1913.1,9.96976255]
[1680674544035,5.51873083,1913.2,1913.1,9.97176255]
[1680674544240,4.42973083,1913.2,1913.1,9.97176255]
[1680674544423,4.42773083,1913.2,1913.1,1.83748]
[1680674544738,4.42773083,1913.2,1913.1,1.82948]
[1680674545449,4.98273083,1913.2,1913.1,1.82948]
[1680674547043,4.98273083,1913.2,1913.1,4.82948]
[1680674547231,4.98273083,1913.2,1913.1,4.83548]
[1680674548808,6.58280391,1913.2,1913.1,1.83548]
[1680674549008,6.58280391,1913.2,1913.1,1.82948]
[1680674549009,7.13980391,1913.2,1913.1,1.82948]
[1680674550331,6.62973083,1913.2,1913.1,1.82948]
[1680674553318,7.18473083,1913.2,1913.1,1.82948]
[1680674557340,7.73973083,1913.2,1913.1,1.82948]
[1680674559756,7.73973083,1913.2,1913.1,0.78406]
[1680674561046,8.29473083,1913.2,1913.1,0.78406]
[1680674562466,9.13580391,1913.2,1913.0,0.952]
[1680674562671,1.091,1913.1,1913.0,0.952]
[1680674563079,1.091,1913.1,1912.9,0.26137]
[1680674563239,8.04580391,1913.2,1912.9,0.26137]
[1680674563240,8.04580391,1913.2,1913.0,0.927]
[1680674564056,8.05180391,1913.2,1913.0,0.927]
[1680674564252,0.80518039,1913.1,1913.0,0.927]
[1680674566065,0.80518039,1913.1,1912.7,0.008]
[1680674566066,0.5,1913.0,1912.7,0.008]
[1680674566389,2.192,1912.8,1912.6,1.87266605]
[1680674566697,1.096,1912.7,1912.6,1.87866605]
[1680674567181,1.096,1912.7,1912.6,1.87266605]
[1680674567757,1.096,1912.7,1912.6,0.26141]
[1680674567959,1.651,1912.7,1912.6,0.26141]
[1680674568462,1.651,1912.7,1912.6,0.26142]
[1680674570181,1.651,1912.7,1912.5,1.35583605]
[1680674570494,1.651,1912.7,1912.5,1.34983605]
[1680674570685,1.83802,1912.7,1912.5,1.08841605]
[1680674570894,1.83802,1912.7,1912.5,1.09441605]
[1680674571183,1.83802,1912.7,1912.5,1.57141605]
[1680674571419,2.39302,1912.7,1912.5,1.57141605]
[1680674571593,2.39302,1912.7,1912.5,0.74443]
[1680674572010,1.29702,1912.7,1912.5,0.483]
[1680674572327,1.091,1912.6,1912.5,0.477]
[1680674572525,1.091,1912.6,1912.5,0.483]
[1680674574711,1.646,1912.6,1912.5,0.483]
[1680674575532,1.646,1912.6,1912.5,0.74443]
[1680674575744,1.646,1912.6,1912.5,0.483]
[1680674576402,0.555,1912.6,1912.5,0.483]
[1680674576603,0.555,1912.6,1912.5,0.477]
[1680674577199,1.829202,1912.6,1912.5,0.477]
[1680674577404,1.829202,1912.6,1912.5,0.483]
[1680674578115,2.384202,1912.6,1912.5,0.483]
[1680674578858,2.384202,1912.6,1912.5,0.477]
[1680674581822,2.939202,1912.6,1912.5,0.477]
[1680674585070,2.754,1912.6,1912.5,0.75997544]
[1680674585252,3.309,1912.6,1912.5,0.76597544]
[1680674586771,3.309,1912.6,1912.5,0.50454544]
[1680674587209,3.309,1912.6,1912.5,0.76597544]
[1680674588011,3.309,1912.6,1912.5,0.50454544]
[1680674588413,3.309,1912.6,1912.5,0.76597544]
[1680674588709,3.864,1912.6,1912.5,0.50454544]
[1680674590924,3.864,1912.6,1912.5,0.76597544]
[1680674591315,3.864,1912.6,1912.5,0.483]
[1680674591729,3.864,1912.6,1912.5,0.74443]
[1680674592131,2.775,1912.6,1912.5,0.483]
[1680674592433,3.33,1912.6,1912.5,0.477]
[1680674593106,3.23,1912.6,1912.5,0.477]
[1680674595721,3.785,1912.6,1912.5,0.477]
[1680674597670,3.785,1912.6,1912.5,0.73843]
[1680674600232,4.34,1912.6,1912.5,0.812273]
[1680674601359,4.34,1912.6,1912.5,0.73843]
[1680674601500,4.34,1912.6,1912.5,0.477]
[1680674602023,4.34,1912.6,1912.5,0.73843]
[1680674602416,4.895,1912.6,1912.5,0.73843]
[1680674602619,4.895,1912.6,1912.5,0.477]
[1680674606046,5.45,1912.6,1912.5,0.477]
[1680674606234,5.452,1912.6,1912.5,0.477]
[1680674609955,6.007,1912.6,1912.5,0.73843]
[1680674610311,6.007,1912.6,1912.5,0.477]
[1680674611816,6.007,1912.6,1912.5,0.73843]
[1680674612015,6.007,1912.6,1912.5,0.477]
[1680674613333,6.562,1912.6,1912.5,0.477]
[1680674614320,8.2548,1912.6,1912.5,0.477]
[1680674616123,8.49008,1912.6,1912.5,0.477]
[1680674616452,8.2548,1912.6,1912.5,0.477]
[1680674616827,8.8098,1912.6,1912.5,0.477]
[1680674617219,9.04508,1912.6,1912.5,0.477]
[1680674617421,8.8158,1912.6,1912.5,0.477]
[1680674618121,8.80687703,1912.6,1912.5,0.477]
[1680674620450,9.36187703,1912.6,1912.5,0.477]
[1680674623363,8.59407703,1912.6,1912.5,0.477]
[1680674623961,9.14907703,1912.6,1912.5,0.477]
[1680674625041,8.22407703,1912.6,1912.5,0.477]
[1680674626370,8.22407703,1912.6,1912.4,0.006]
[1680674626550,8.22407703,1912.6,1912.3,1.87878605]
[1680674627430,8.77907703,1912.6,1912.3,1.87878605]
[1680674629472,8.77907703,1912.6,1912.3,1.35586605]
[1680674630040,8.77907703,1912.6,1912.3,1.09441605]
[1680674630257,8.77907703,1912.6,1912.3,1.35587605]
[1680674630452,9.86048473,1912.6,1912.3,0.79039]
[1680674630689,1.16029,1912.5,1912.3,0.006]
[1680674630868,0.925,1912.4,1912.3,0.006]
[1680674631064,0.925,1912.4,1912.2,0.006]
[1680674631264,0.925,1912.5,1912.2,1.09441605]
[1680674631467,0.0925,1912.4,1912.2,0.006]
[1680674631671,0.0925,1912.4,1912.2,0.26747]
[1680674632803,0.0925,1912.4,1912.2,1.35588605]
[1680674632983,0.925,1912.5,1912.2,1.35588605]
[1680674633555,0.925,1912.5,1912.2,0.26747]
[1680674634475,1.48,1912.5,1912.2,0.79042]
[1680674635256,1.48,1912.5,1912.2,1.87883605]
[1680674635489,1.48,1912.5,1912.2,3.27305926]
[1680674637983,2.035,1912.5,1912.2,3.27305926]
[1680674638154,2.035,1912.5,1912.2,0.26747]
[1680674638960,2.035,1912.5,1912.2,0.18903]
[1680674641461,2.59,1912.5,1912.2,0.18903]
[1680674641667,2.58732748,1912.5,1912.1,11.79611605]
[1680674641888,3.77946793,1912.5,1912.1,11.97914605]
[1680674642599,3.77946793,1912.5,1912.1,1.27944605]
[1680674642809,3.77946793,1912.5,1912.1,1.27744605]
[1680674643714,3.77946793,1912.5,1912.1,1.64352605]
[1680674643893,0.37794679,1912.4,1912.1,1.64352605]
[1680674645114,0.93294679,1912.4,1912.1,1.64352605]
[1680674645996,0.93294679,1912.4,1912.1,1.27744605]
[1680674647400,0.555,1912.4,1912.1,1.27744605]
[1680674647782,0.555,1912.4,1912.1,1.64352605]
[1680674648530,1.11,1912.4,1912.1,1.64352605]
[1680674651906,1.665,1912.4,1912.1,1.64352605]
[1680674653584,1.665,1912.4,1912.1,1.27744605]
[1680674653787,1.665,1912.4,1912.1,1.26744814]
[1680674654921,1.665,1912.4,1912.2,0.053]
[1680674655090,1.665,1912.4,1912.2,0.23603]
[1680674655289,2.22,1912.4,1912.2,0.23603]
[1680674655497,2.226,1912.4,1912.2,0.23603]
[1680674656122,2.22,1912.4,1912.2,0.23603]
[1680674656616,2.22,1912.4,1912.2,0.40468281]
[1680674656819,2.226,1912.4,1912.2,0.40468281]
[1680674658324,2.226,1912.4,1912.2,0.23603]
[1680674658522,2.22,1912.4,1912.2,0.23603]
[1680674658726,2.781,1912.4,1912.2,0.23603]
[1680674661724,2.781,1912.4,1912.2,1.33016677]
[1680674662128,3.336,1912.4,1912.2,1.33016677]
[1680674662623,3.336,1912.4,1912.2,1.69623677]
[1680674665828,3.891,1912.4,1912.2,1.69623677]
[1680674669202,4.446,1912.4,1912.2,2.07544405]
[1680674669901,4.446,1912.4,1912.2,1.69623677]
[1680674672613,5.001,1912.4,1912.2,1.69623677]
[1680674672803,5.003,1912.4,1912.2,1.69623677]
[1680674674112,4.9993532,1912.4,1912.2,1.69623677]
[1680674674306,4.9913532,1912.4,1912.2,1.69623677]
[1680674675640,4.9913532,1912.4,1912.3,0.18302]
[1680674675936,4.9913532,1912.4,1912.3,0.54907]
[1680674676133,5.5463532,1912.4,1912.3,1.64320677]
[1680674676341,5.5483532,1912.4,1912.3,1.64320677]
[1680674680516,6.1033532,1912.4,1912.3,1.64320677]
[1680674683971,6.6583532,1912.4,1912.3,1.64320677]
[1680674687451,7.2133532,1912.4,1912.3,1.64320677]
[1680674689375,7.2133532,1912.4,1912.3,0.54907]
[1680674689760,7.2133532,1912.4,1912.3,1.64320677]
[1680674690860,7.7683532,1912.4,1912.3,1.27715677]
[1680674694868,8.3233532,1912.4,1912.3,1.27715677]
[1680674696046,8.3233532,1912.4,1912.3,1.09413677]
[1680674696233,9.32278852,1912.4,1912.3,1.09413677]
[1680674696433,9.32278852,1912.4,1912.3,1.27715677]
[1680674696881,9.32278852,1912.4,1912.3,1.09413677]
[1680674697063,9.32278852,1912.4,1912.3,1.27715677]
[1680674697872,9.32278852,1912.4,1912.3,1.09413677]
[1680674698170,9.32278852,1912.4,1912.3,1.27715677]
[1680674698369,9.87380683,1912.4,1912.3,1.27715677]
[1680674702167,10.42880683,1912.4,1912.3,1.27715677]
[1680674702331,10.42880683,1912.4,1912.3,0.18302]
[1680674703683,9.42937151,1912.4,1912.3,0.18302]
[1680674704879,9.42937151,1912.4,1912.3,1.27715677]
[1680674705877,9.98437151,1912.4,1912.3,1.27715677]
[1680674706511,9.98437151,1912.4,1912.2,1.69821677]
[1680674706681,9.98437151,1912.4,1912.3,0.18302]
[1680674706975,9.98437151,1912.4,1912.2,1.69221677]
[1680674708779,9.98437151,1912.4,1912.2,1.32615677]
[1680674709182,10.53937151,1912.4,1912.2,1.32615677]
[1680674711349,10.53937151,1912.4,1912.2,0.23202]
[1680674711786,10.53937151,1912.4,1912.2,1.32615677]
[1680674711986,10.53937151,1912.4,1912.2,0.23202]
[1680674712289,11.46437151,1912.4,1912.2,0.23202]
[1680674712485,12.01937151,1912.4,1912.2,0.23202]
[1680674713269,12.01937151,1912.4,1912.2,1.32615677]
[1680674713454,12.01937151,1912.4,1912.2,0.23202]
[1680674716090,12.57437151,1912.4,1912.2,0.23202]
[1680674719206,12.57232687,1912.4,1912.2,0.23202]
[1680674719394,13.12732687,1912.4,1912.2,0.23202]
[1680674723103,13.68232687,1912.4,1912.2,0.23202]
[1680674726786,14.23732687,1912.4,1912.2,0.23202]
[1680674727888,14.79232687,1912.4,1912.2,0.23202]
[1680674730316,16.43865956,1912.4,1912.2,0.23202]
[1680674731615,16.99365956,1912.4,1912.2,0.23202]
[1680674735018,17.54865956,1912.4,1912.2,0.23202]
[1680674736911,16.62365956,1912.4,1912.2,0.23202]
[1680674738313,17.17865956,1912.4,1912.2,0.23202]
[1680674741782,17.73365956,1912.4,1912.2,0.23202]
[1680674742084,17.73365956,1912.4,1912.2,1.32615677]
[1680674742417,17.73365956,1912.4,1912.2,0.23202]
[1680674743289,17.72977121,1912.4,1912.2,0.23202]
[1680674744618,1.77297712,1912.3,1912.2,0.049]
[1680674744824,3.61397712,1912.3,1912.2,0.049]
[1680674745029,3.61397712,1912.3,1911.8,1.10013677]
[1680674745326,0.925,1911.9,1911.8,0.18906]
[1680674745491,0.925,1911.9,1911.8,1.10013677]
[1680674746521,0.925,1911.9,1911.8,1.09413677]
[1680674747315,0.925,1911.9,1911.7,1.28320677]
[1680674747584,0.924,1911.8,1911.7,1.28320677]
[1680674747902,0.924,1911.8,1911.7,2.21140505]
[1680674748488,1.479,1911.8,1911.7,2.21140505]
[1680674748687,1.479,1911.8,1911.7,1.28320677]
[1680674752000,1.479,1911.8,1911.7,1.10013677]
[1680674752227,2.034,1911.8,1911.7,1.10013677]
[1680674753428,2.034,1911.8,1911.7,0.006]
[1680674755628,2.589,1911.8,1911.7,0.006]
[1680674758998,3.144,1911.8,1911.7,0.006]
[1680674761398,3.144,1911.8,1911.7,0.18908]
[1680674761604,3.144,1911.8,1911.7,0.006]
[1680674762634,3.699,1911.8,1911.7,0.006]
[1680674763626,3.699,1911.8,1911.7,0.81677]
[1680674763925,3.699,1911.8,1911.7,0.63369]
[1680674766047,4.254,1911.8,1911.7,0.63369]
[1680674767241,4.254,1911.8,1911.7,0.006]
[1680674769436,4.809,1911.8,1911.7,0.006]
[1680674770168,3.885,1911.8,1911.7,0.006]
[1680674772822,4.44,1911.8,1911.7,0.006]
[1680674775057,4.44,1911.8,1911.7,0.18908]
[1680674775219,4.44,1911.8,1911.7,0.835078]
[1680674775423,4.44,1911.8,1911.7,1.201238]
[1680674776263,4.995,1911.8,1911.7,1.201238]
[1680674777264,4.995,1911.8,1911.7,0.835078]
[1680674779666,5.55,1911.8,1911.7,0.835078]
[1680674779861,5.552,1911.8,1911.7,0.835078]
[1680674782267,5.552,1911.8,1911.7,0.18908]
[1680674783434,6.107,1911.8,1911.7,0.18908]
[1680674784567,6.107,1911.8,1911.7,0.006]
[1680674786176,7.032,1911.8,1911.6,1.10013677]
[1680674786871,7.587,1911.8,1911.6,0.006]
[1680674787071,8.3821,1911.8,1911.6,0.006]
[1680674787476,8.3821,1911.8,1911.6,0.18909]
[1680674788161,8.3821,1911.8,1911.6,0.006]
[1680674788362,8.3821,1911.8,1911.6,0.18909]
[1680674789170,8.3821,1911.8,1911.6,1.28322677]
[1680674789374,8.3821,1911.8,1911.6,1.10013677]
[1680674789740,8.3821,1911.8,1911.6,1.28322677]
[1680674790362,8.9371,1911.8,1911.6,1.28322677]
[1680674790761,8.9371,1911.8,1911.6,1.10013677]
[1680674790978,8.9371,1911.8,1911.6,1.28322677]
[1680674791454,8.9371,1911.8,1911.6,1.10013677]
[1680674791773,8.9371,1911.8,1911.6,1.28322677]
[1680674792074,8.9371,1911.8,1911.6,1.10013677]
[1680674793739,9.4921,1911.8,1911.6,1.10013677]
[1680674794341,0.94921,1911.7,1911.6,1.10013677]
[1680674796276,0.94921,1911.7,1911.6,1.09413677]
[1680674796277,0.94551317,1911.7,1911.6,1.09413677]
[1680674796689,0.94551317,1911.7,1911.6,1.27722677]
[1680674797309,0.555,1911.7,1911.6,1.27722677]
[1680674801678,1.11,1911.7,1911.6,1.27722677]
[1680674804794,1.11,1911.7,1911.6,1.09413677]
[1680674804978,1.11,1911.7,1911.6,1.27722677]
[1680674805181,1.665,1911.7,1911.6,1.27722677]
[1680674808445,1.665,1911.7,1911.6,1.09413677]
[1680674808642,2.22,1911.7,1911.6,1.09413677]
[1680674809633,2.22,1911.7,1911.5,1.10013677]
[1680674809827,2.22,1911.7,1911.5,1.27722677]
[1680674812019,2.775,1911.7,1911.5,1.27722677]
[1680674813512,2.775,1911.7,1911.5,2.63892283]
[1680674815420,3.33,1911.7,1911.5,3.00512283]
[1680674818557,3.33,1911.7,1911.6,1.09413677]
[1680674818726,3.885,1911.7,1911.6,1.94391905]
[1680674818927,3.885,1911.7,1911.6,2.21147834]
[1680674819343,3.885,1911.7,1911.6,3.30770672]
[1680674819722,3.885,1911.7,1911.6,2.21147834]
[1680674819936,3.88169946,1911.7,1911.6,2.21147834]
[1680674822165,4.43669946,1911.7,1911.6,2.21147834]
[1680674824126,4.43669946,1911.7,1911.6,1.84529834]
[1680674824461,4.43669946,1911.7,1911.6,1.54478606]
[1680674825374,4.43669946,1911.7,1911.6,1.91096606]
[1680674825530,4.99169946,1911.7,1911.6,1.91096606]
[1680674828027,4.99169946,1911.7,1911.6,1.90849233]
[1680674829027,5.54669946,1911.7,1911.6,1.90849233]
[1680674829230,5.54869946,1911.7,1911.6,1.90849233]
[1680674832560,6.10369946,1911.7,1911.6,1.90849233]
[1680674836031,6.10369946,1911.7,1911.6,2.09934156]
[1680674836239,6.65869946,1911.7,1911.6,2.09934156]
[1680674839685,7.21369946,1911.7,1911.6,2.09934156]
[1680674840682,7.21369946,1911.7,1911.6,1.90849233]
[1680674844637,7.76869946,1911.7,1911.6,1.90849233]
[1680674845035,7.76869946,1911.7,1911.6,1.54231233]
[1680674845643,7.76869946,1911.7,1911.6,2.6382279]
[1680674845841,7.77469946,1911.7,1911.6,1.27653184]
[1680674846024,7.76869946,1911.7,1911.6,1.27653184]
[1680674846895,8.32369946,1911.7,1911.6,1.27653184]
[1680674848140,8.32127325,1911.7,1911.6,1.27653184]
[1680674850433,8.87627325,1911.7,1911.6,1.27653184]
[1680674852202,8.87627325,1911.7,1911.6,1.27900557]
[1680674854637,9.43127325,1911.7,1911.6,1.27900557]
[1680674855744,11.15200058,1911.7,1911.6,1.27900557]
[1680674856941,9.43127325,1911.7,1911.6,1.27900557]
[1680674858104,9.98627325,1911.7,1911.6,1.27900557]
[1680674861331,9.98627325,1911.7,1911.6,1.64518557]
[1680674861509,10.54727325,1911.7,1911.6,1.64518557]
[1680674862246,11.47227325,1911.7,1911.6,1.64518557]
[1680674863745,13.39650058,1911.7,1911.6,1.64518557]
[1680674863946,13.39650058,1911.7,1911.6,1.27900557]
[1680674864334,13.39050058,1911.7,1911.6,1.27900557]
[1680674864736,13.39450058,1911.7,1911.6,1.27900557]
[1680674864910,13.95150058,1911.7,1911.6,1.27900557]
[1680674865248,13.94550058,1911.7,1911.6,1.27900557]
[1680674866119,13.94750058,1911.7,1911.6,1.27900557]
[1680674866326,13.94550058,1911.7,1911.6,1.27900557]
[1680674868444,14.50050058,1911.7,1911.6,1.27900557]
[1680674871858,15.05550058,1911.7,1911.6,1.27900557]
[1680674873225,15.06150058,1911.7,1911.6,1.27900557]
[1680674873552,15.06150058,1911.7,1911.6,1.09591557]
[1680674873769,15.06150058,1911.7,1911.5,1.30700557]
[1680674874360,15.05182431,1911.7,1911.5,1.30700557]
[1680674874565,15.05182431,1911.7,1911.5,1.12391557]
[1680674874729,15.05182431,1911.7,1911.5,1.30701557]
[1680674874924,15.05182431,1911.7,1911.5,1.12391557]
[1680674875124,15.05182431,1911.7,1911.5,1.30701557]
[1680674875359,15.60682431,1911.7,1911.5,1.12391557]
[1680674875664,15.60682431,1911.7,1911.5,1.30701557]
[1680674875844,15.60682431,1911.7,1911.5,1.12391557]
[1680674876250,15.60682431,1911.7,1911.5,1.30701557]
[1680674877537,15.60682431,1911.7,1911.5,1.12391557]
[1680674877761,1.56068243,1911.6,1911.5,1.09591557]
[1680674878330,15.60682431,1911.7,1911.5,1.09591557]
[1680674879166,16.16182431,1911.7,1911.5,1.27901557]
[1680674882069,15.23682431,1911.7,1911.5,1.27901557]
[1680674882274,0.924,1911.6,1911.5,1.27901557]
[1680674882475,1.479,1911.6,1911.5,1.27901557]
[1680674886483,2.034,1911.6,1911.5,1.27901557]
[1680674889140,2.034,1911.6,1911.5,1.64521557]
[1680674890172,2.589,1911.6,1911.5,1.64521557]
[1680674890383,1.665,1911.6,1911.5,1.65121557]
[1680674890577,1.665,1911.6,1911.5,3.00691163]
[1680674890777,1.665,1911.6,1911.5,3.01291163]
[1680674894091,2.22,1911.6,1911.5,1.91699606]
[1680674894476,2.21729524,1911.6,1911.5,1.91099606]
[1680674897487,2.77229524,1911.6,1911.5,2.75891667]
[1680674897697,2.77229524,1911.6,1911.5,1.39722061]
[1680674898666,2.77229524,1911.6,1911.5,1.40322061]
[1680674900968,3.32729524,1911.6,1911.5,1.40322061]
[1680674904400,3.32729524,1911.6,1911.5,2.65734642]
[1680674904695,3.88229524,1911.6,1911.5,1.28613554]
[1680674906605,3.88229524,1911.6,1911.5,1.65233554]
[1680674907701,3.88229524,1911.6,1911.5,1.92651088]
[1680674907876,3.88229524,1911.6,1911.5,3.02359182]
[1680674908066,4.43729524,1911.6,1911.5,1.65238094]
[1680674909413,4.43729524,1911.6,1911.5,3.02359182]
[1680674910572,4.43729524,1911.6,1911.5,1.65238094]
[1680674910772,4.43729524,1911.6,1911.5,3.02359182]
[1680674911611,4.99229524,1911.6,1911.5,3.02359182]
[1680674912379,4.99229524,1911.6,1911.5,1.65238094]
[1680674912582,4.99229524,1911.6,1911.5,3.02359182]
[1680674912799,4.99229524,1911.6,1911.5,1.92651088]
[1680674913117,4.99229524,1911.6,1911.5,1.33093109]
[1680674913320,4.99229524,1911.6,1911.5,6.74624892]
[1680674913477,4.99229524,1911.6,1911.5,8.11421364]
[1680674913682,4.99229524,1911.6,1911.5,10.02058813]
[1680674914379,4.99229524,1911.6,1911.5,10.28205342]
[1680674914724,4.86369525,1911.6,1911.5,8.37567893]
[1680674915016,5.41869525,1911.6,1911.5,8.37567893]
[1680674915187,5.42069525,1911.6,1911.5,13.87567893]
[1680674915383,5.42069525,1911.6,1911.5,13.89723564]
[1680674916120,5.42069525,1911.6,1911.5,14.42626395]
[1680674918592,5.97569525,1911.6,1911.5,14.42626395]
[1680674918792,5.97569525,1911.6,1911.5,16.0685452]
[1680674919095,5.97569525,1911.6,1911.5,14.42626395]
[1680674919513,5.97569525,1911.6,1911.5,16.06851259]
[1680674919718,5.97569525,1911.6,1911.5,14.42626395]
[1680674920537,5.97569525,1911.6,1911.5,16.06848638]
[1680674922027,6.53069525,1911.6,1911.5,16.06848638]
[1680674925839,7.08569525,1911.6,1911.5,16.06848638]
[1680674929449,7.64069525,1911.6,1911.5,16.06848638]
[1680674930120,7.64069525,1911.6,1911.5,16.98648638]
[1680674932052,7.64069525,1911.6,1911.5,16.06948638]
[1680674933107,8.19569525,1911.6,1911.5,16.06948638]
[1680674934917,8.19569525,1911.6,1911.5,10.56948638]
[1680674935127,8.19569525,1911.6,1911.5,9.26803918]
[1680674935314,8.19569525,1911.6,1911.5,6.72061086]
[1680674936481,8.75069525,1911.6,1911.5,6.42158255]
[1680674936976,8.74820115,1911.6,1911.5,7.78965848]
[1680674938127,8.75420115,1911.6,1911.5,7.78365848]
[1680674939422,8.75420115,1911.6,1911.5,7.78002233]
[1680674940048,9.30920115,1911.6,1911.5,7.78002233]
[1680674943198,9.30920115,1911.6,1911.5,4.91573978]
[1680674943340,9.30920115,1911.6,1911.5,4.91373978]
[1680674943535,9.86420115,1911.6,1911.5,4.91373978]
[1680674947097,10.41920115,1911.6,1911.5,4.91373978]
[1680674950295,10.97420115,1911.6,1911.5,4.91373978]
[1680674951544,10.97420115,1911.6,1911.5,1.91373978]
[1680674953805,11.52920115,1911.6,1911.5,1.91373978]
[1680674956695,14.01318096,1911.6,1911.5,1.2749614]
[1680674956908,15.86318096,1911.6,1911.5,0.1831]
[1680674957206,16.41818096,1911.6,1911.5,0.1831]
[1680674957787,16.41818096,1911.6,1911.5,0.5493]
[1680674958100,16.41818096,1911.6,1911.5,0.1831]
[1680674960645,16.97318096,1911.6,1911.5,0.1831]
[1680674964285,17.51836923,1911.6,1911.5,0.1831]
[1680674967491,14.10938942,1911.6,1911.5,0.5493]
[1680674967790,14.66438942,1911.6,1911.5,1.64479755]
[1680674968689,14.66438942,1911.6,1911.5,1.65079755]
[1680674970197,13.73938942,1911.6,1911.5,1.65079755]
[1680674971201,14.29438942,1911.6,1911.5,1.65079755]
[1680674971371,14.29438942,1911.6,1911.5,4.66040845]
[1680674971575,14.29438942,1911.6,1911.5,5.16298683]
[1680674971764,14.29438942,1911.6,1911.5,5.16498683]
[1680674973499,14.29438942,1911.6,1911.5,4.93498683]
[1680674973699,14.29438942,1911.6,1911.5,5.16298683]
[1680674973895,14.29438942,1911.6,1911.5,5.16498683]
[1680674974362,14.84938942,1911.6,1911.5,5.16498683]
[1680674975175,14.84938942,1911.6,1911.5,6.81846761]
[1680674978164,15.40438942,1911.6,1911.5,6.81846761]
[1680674978395,15.40438942,1911.6,1911.5,13.96069004]
[1680674978700,15.40438942,1911.6,1911.5,14.90388133]
[1680674980203,15.40438942,1911.6,1911.5,14.22215533]
[1680674981003,15.40438942,1911.6,1911.5,12.5799329]
[1680674981204,15.40438942,1911.6,1911.5,14.22294968]
[1680674981607,15.95938942,1911.6,1911.5,14.22294968]
[1680674983419,15.95938942,1911.6,1911.5,14.22284062]
[1680674984306,15.95721289,1911.6,1911.5,14.22284062]
[1680674985431,16.51221289,1911.6,1911.5,14.22284062]
[1680674985628,16.51221289,1911.6,1911.5,13.96137533]
[1680674989534,17.06721289,1911.6,1911.5,13.96137533]
[1680674992938,17.62221289,1911.6,1911.5,13.96137533]
[1680674994845,17.62221289,1911.6,1911.5,14.22284062]
[1680674995214,17.62221289,1911.6,1911.5,8.72284062]
[1680674996410,18.17721289,1911.6,1911.5,8.72284062]
[1680674997811,18.17721289,1911.6,1911.5,14.22284062]
[1680674998149,18.17721289,1911.6,1911.5,8.72284062]
[1680674998711,18.17721289,1911.6,1911.5,14.22284062]
[1680674999131,18.17721289,1911.6,1911.5,12.5799329]
[1680674999916,18.73221289,1911.6,1911.5,12.31846761]
[1680675000646,18.73221289,1911.6,1911.5,13.96137533]
[1680675001014,18.73221289,1911.6,1911.5,12.31846761]
[1680675001813,18.73221289,1911.6,1911.5,6.81846761]
[1680675002918,18.73221289,1911.6,1911.5,6.7969109]
[1680675003457,19.28721289,1911.6,1911.5,6.7969109]
[1680675003755,19.28721289,1911.6,1911.5,8.16533208]
[1680675004061,19.29321289,1911.6,1911.5,7.78400373]
[1680675004421,19.29321289,1911.6,1911.5,4.91972118]
[1680675004619,19.29321289,1911.6,1911.5,4.91772118]
[1680675005461,19.28511929,1911.6,1911.5,4.92372118]
[1680675007248,19.84011929,1911.6,1911.5,4.92372118]
[1680675007650,19.84011929,1911.6,1911.5,1.92372118]
[1680675007856,19.84011929,1911.6,1911.5,1.91772118]
[1680675008947,19.84011929,1911.6,1911.5,3.01292836]
[1680675009270,19.84011929,1911.6,1911.5,1.91772118]
[1680675010284,19.84611929,1911.6,1911.5,1.91772118]
[1680675010426,20.40111929,1911.6,1911.5,1.91772118]
[1680675010629,21.32611929,1911.6,1911.5,1.91772118]
[1680675012295,21.32611929,1911.6,1911.5,3.01343794]
[1680675012644,21.32611929,1911.6,1911.5,1.64501676]
[1680675012844,21.32611929,1911.6,1911.5,3.01343794]
[1680675013247,21.32611929,1911.6,1911.5,1.91772118]
[1680675013755,21.32011929,1911.6,1911.5,1.91772118]
[1680675013951,25.34479092,1911.6,1911.5,1.55152118]
[1680675014157,25.33879092,1911.6,1911.5,1.55152118]
[1680675014557,25.33879092,1911.6,1911.5,1.36842118]
[1680675014768,25.34479092,1911.6,1911.5,1.09619411]
[1680675014974,25.34479092,1911.6,1911.5,1.27929411]
[1680675016268,25.33879092,1911.6,1911.5,1.09241921]
[1680675016670,25.33879092,1911.6,1911.5,1.27551921]
[1680675016976,25.33879092,1911.6,1911.5,1.09241921]
[1680675017696,25.89379092,1911.6,1911.5,1.27551921]
[1680675017997,25.89979092,1911.6,1911.5,1.27551921]
[1680675018422,25.89979092,1911.6,1911.5,0.1831]
[1680675018595,25.89379092,1911.6,1911.5,0.1831]
[1680675021201,26.44879092,1911.6,1911.5,0.1831]
[1680675024534,27.00379092,1911.6,1911.5,0.1831]
[1680675026443,27.00379092,1911.6,1911.5,0.2371]
[1680675026735,27.00379092,1911.6,1911.5,0.1831]
[1680675028141,27.55879092,1911.6,1911.5,0.1831]
[1680675030136,27.56479092,1911.6,1911.5,0.1831]
[1680675030504,27.55879092,1911.6,1911.5,0.1831]
[1680675030717,27.56479092,1911.6,1911.5,0.1831]
[1680675031243,27.55879092,1911.6,1911.5,0.1831]
[1680675031451,28.11379092,1911.6,1911.5,0.1831]
[1680675032346,28.11379092,1911.6,1911.5,1.27840371]
[1680675032521,24.65611929,1911.6,1911.5,1.27840371]
[1680675035328,25.21111929,1911.6,1911.5,1.27840371]
[1680675035537,25.21111929,1911.6,1911.5,1.64460371]
[1680675035738,24.28611929,1911.6,1911.5,1.91772118]
[1680675035941,24.28611929,1911.6,1911.5,2.23629854]
[1680675036323,24.28611929,1911.6,1911.5,5.10058109]
[1680675036526,24.28611929,1911.6,1911.5,5.10258109]
[1680675038462,24.28611929,1911.6,1911.5,3.73415991]
[1680675038663,24.28611929,1911.6,1911.5,3.73215991]
[1680675038845,24.83249544,1911.6,1911.5,3.73815991]
[1680675041231,24.83249544,1911.6,1911.5,5.38106763]
[1680675041443,24.83249544,1911.6,1911.5,5.38306763]
[1680675042368,25.38749544,1911.6,1911.5,5.38306763]
[1680675043672,25.38749544,1911.6,1911.5,8.64453292]